bitfinex/quotes_SOLUSD_20220307
["timestamp","ask_amount","ask_price","bid_price","bid_amount"]
[1646658261485,24.374,83.976,83.907,0.25]
[1646658261887,24.374,83.976,83.905,0.25]
[1646658262287,6.0,83.975,83.905,0.25]
[1646658262484,0.25,83.974,83.905,0.25]
[1646658263084,17.881,83.96,83.905,0.25]
[1646658263286,48.5579285,83.959,83.905,0.25]
[1646658265987,48.5579285,83.959,83.902,0.25]
[1646658267189,17.8821,83.95,83.887,14.7208674]
[1646658267392,17.8821,83.95,83.877,24.6119025]
[1646658267393,0.25,83.949,83.902,6.0]
[1646658267590,0.25,83.949,83.882,6.0]
[1646658267791,23.0501,83.949,83.882,6.0]
[1646658268090,23.0501,83.949,83.89,17.8823]
[1646658268290,23.0501,83.949,83.891,6.0]
[1646658268491,23.0501,83.949,83.892,0.25]
[1646658269192,23.0501,83.949,83.892,24.8619025]
[1646658269393,23.0501,83.949,83.893,6.0]
[1646658269593,23.0501,83.949,83.894,0.25]
[1646658270104,23.0501,83.949,83.893,6.0]
[1646658270497,47.88004022,83.939,83.893,6.0]
[1646658270697,0.25,83.938,83.893,6.0]
[1646658271298,0.25,83.938,83.894,0.25]
[1646658272999,0.25,83.938,83.892,0.25]
[1646658274101,0.25,83.938,83.891,6.25]
[1646658274599,0.25,83.938,83.9,17.8804]
[1646658274801,0.6147,83.957,83.901,6.25]
[1646658275001,0.25,83.957,83.901,6.25]
[1646658275203,0.25,83.957,83.903,0.12566497]
[1646658275400,0.25,83.957,83.903,6.37566497]
[1646658275603,0.25,83.957,83.91,17.3781]
[1646658275902,47.96134286,83.982,83.912,119.4]
[1646658276101,47.96134286,83.982,83.914,0.12566497]
[1646658276102,0.6192,83.981,83.914,0.12566497]
[1646658276301,47.96134286,83.982,83.914,0.12566497]
[1646658276503,47.96134286,83.982,83.915,16.19420073]
[1646658276701,47.96134286,83.982,83.92,17.875]
[1646658276905,47.96134286,83.982,83.921,6.25]
[1646658277101,47.96134286,83.982,83.916,30.8619025]
[1646658277303,47.96134286,83.982,83.922,24.6119025]
[1646658277502,47.96134286,83.982,83.923,6.25]
[1646658277903,0.6266,83.981,83.923,6.25]
[1646658278102,47.96134286,83.982,83.93,17.8738]
[1646658278303,0.25,83.981,83.931,6.25]
[1646658279304,0.25,83.981,83.932,6.0]
[1646658279503,47.96134286,83.982,83.933,0.25]
[1646658279705,47.96134286,83.982,83.931,0.25]
[1646658280506,47.96134286,83.982,83.94,17.8716]
[1646658280706,0.25,83.981,83.941,6.25]
[1646658281006,0.8938,84.014,83.941,6.25]
[1646658281205,0.25,84.014,83.941,0.25]
[1646658281608,17.8694,84.01,83.941,0.25]
[1646658281806,44.42713736,84.009,83.941,6.25]
[1646658282008,119.4,84.008,83.941,6.25]
[1646658282206,0.9032,84.007,83.941,0.25]
[1646658282408,0.9032,84.007,83.918,0.25]
[1646658282608,0.25,84.007,83.918,0.25]
[1646658283008,0.25,84.007,83.918,24.8619025]
[1646658283216,0.658,84.006,83.919,6.0]
[1646658283410,0.6604,84.007,83.92,0.25]
[1646658284211,17.8727,84.0,83.93,17.8735]
[1646658284413,0.9127,83.999,83.931,6.25]
[1646658284611,0.6627,83.999,83.931,6.25]
[1646658284811,0.665,84.007,83.931,6.25]
[1646658285014,0.665,84.007,83.931,0.25]
[1646658285613,0.665,84.007,83.918,0.25]
[1646658286212,17.8719,84.0,83.94,17.8723]
[1646658286413,0.25,83.999,83.941,6.25]
[1646658287017,24.0581,83.999,83.941,6.25]
[1646658287216,17.8747,83.99,83.941,6.25]
[1646658287417,44.49218369,83.989,83.921,6.0]
[1646658287617,23.8081,83.988,83.921,6.0]
[1646658287918,0.25,83.987,83.921,6.0]
[1646658288133,0.25,83.987,83.917,6.0]
[1646658289233,17.8764,83.98,83.92,17.8764]
[1646658289433,0.25,83.979,83.921,6.0]
[1646658289633,0.25,83.979,83.922,0.25]
[1646658291134,0.25,83.979,83.93,17.8743]
[1646658291335,0.25,83.987,83.931,6.25]
[1646658292736,17.8757,83.98,83.931,6.25]
[1646658292937,0.25,83.979,83.931,0.25]
[1646658293239,0.25,83.979,83.922,0.25]
[1646658293836,23.8081,83.988,83.93,17.8746]
[1646658294037,23.8081,83.988,83.931,6.25]
[1646658294237,23.8081,83.988,83.932,6.25]
[1646658294437,23.8081,83.988,83.918,24.8619025]
[1646658294639,23.8081,83.988,83.919,6.0]
[1646658294838,23.8081,83.988,83.92,0.25]
[1646658295238,17.8756,83.98,83.92,18.1261]
[1646658295444,0.25,83.979,83.921,6.0]
[1646658295648,0.25,83.979,83.922,0.25]
[1646658296239,0.25,83.979,83.923,5.955]
[1646658296440,0.25,83.979,83.93,17.8747]
[1646658296640,0.25,83.987,83.931,12.205]
[1646658296940,0.25,83.987,83.932,0.25]
[1646658297141,0.25,83.987,83.933,5.955]
[1646658297342,0.25,83.987,83.934,6.25]
[1646658297541,0.25,83.987,83.935,5.955]
[1646658297741,0.25,83.987,83.936,6.25]
[1646658297942,0.25,83.987,83.94,17.8719]
[1646658298146,0.25,83.987,83.941,6.25]
[1646658298743,0.25,83.987,83.941,0.25]
[1646658299142,0.25,83.987,83.927,6.25]
[1646658299342,0.25,83.987,83.93,17.8734]
[1646658299543,0.25,83.987,83.931,12.205]
[1646658300246,0.25,83.987,83.94,17.8726]
[1646658300445,2.20311886,84.007,83.943,0.19477456]
[1646658300645,0.5977,84.007,83.944,5.954]
[1646658300848,0.5977,84.007,83.945,6.25]
[1646658301046,0.5977,84.007,83.946,5.954]
[1646658301248,0.5977,84.007,83.95,17.8658]
[1646658301446,0.5977,84.007,83.951,6.25]
[1646658302147,0.5977,84.007,83.951,0.25]
[1646658302646,0.8477,84.007,83.945,6.203]
[1646658302947,0.8477,84.007,83.946,6.0]
[1646658303146,0.8477,84.007,83.96,17.8675]
[1646658303349,0.8477,84.007,83.961,6.25]
[1646658304647,0.8477,84.007,83.97,17.8656]
[1646658304850,0.8477,84.007,83.972,0.1988325]
[1646658305048,0.5977,84.007,83.972,0.1988325]
[1646658305247,0.5977,84.007,83.971,6.25]
[1646658306251,0.5977,84.007,83.98,17.8632]
[1646658306452,1.60541886,84.036,83.982,0.13891784]
[1646658306650,1.60541886,84.043,83.982,24.95331784]
[1646658306856,1.60541886,84.044,83.983,6.25]
[1646658307054,1.60541886,84.052,83.983,6.25]
[1646658307251,1.60541886,84.052,83.99,17.8586]
[1646658307454,47.73984962,84.051,83.991,6.25]
[1646658307859,1.60541886,84.048,83.991,6.25]
[1646658308052,0.25,84.047,83.991,0.25]
[1646658308253,43.50611886,84.05,83.991,0.25]
[1646658308454,25.64401886,84.05,83.991,6.25]
[1646658308652,24.0386,84.05,83.991,0.25]
[1646658308851,24.0386,84.05,83.984,6.2]
[1646658309052,24.0386,84.05,83.985,6.0]
[1646658309262,24.0386,84.05,83.986,6.2]
[1646658309453,24.0386,84.05,84.0,17.8589]
[1646658309653,0.25,84.049,84.001,6.2]
[1646658309852,0.25,84.049,84.002,0.25]
[1646658310052,0.25,84.049,84.003,5.95]
[1646658310253,0.25,84.049,84.002,0.25]
[1646658311155,0.25,84.049,83.993,6.25]
[1646658311356,0.25,84.049,83.994,5.95]
[1646658311558,0.25,84.049,83.995,6.25]
[1646658311755,0.25,84.049,83.996,5.95]
[1646658311956,0.25,84.049,83.997,6.25]
[1646658312157,0.25,84.049,84.0,17.8578]
[1646658312356,0.25,84.049,84.001,12.2]
[1646658313758,24.0386,84.05,84.001,12.2]
[1646658315259,24.0386,84.05,84.01,17.8573]
[1646658315561,0.6176,84.066,84.011,125.65]
[1646658315761,1.60541886,84.086,84.013,119.4]
[1646658315960,1.60541886,84.102,84.015,119.4]
[1646658316163,1.60541886,84.103,84.017,119.4]
[1646658316361,38.94398538,84.102,84.022,0.16337704]
[1646658316560,38.94398538,84.102,84.022,6.25]
[1646658316561,17.8501,84.1,84.022,6.25]
[1646658316761,0.25,84.099,84.023,5.948]
[1646658316960,38.94398538,84.102,84.023,5.948]
[1646658316961,119.65,84.101,84.024,6.25]
[1646658317162,1.60541886,84.097,84.024,6.25]
[1646658317362,127.25541886,84.096,84.024,6.25]
[1646658317662,119.4,84.089,84.014,24.8656]
[1646658317862,119.4,84.081,84.014,24.8656]
[1646658318062,119.4,84.079,84.014,24.8656]
[1646658318265,119.4,84.077,84.012,5.949]
[1646658318462,0.25,84.076,83.99,17.8603]
[1646658318666,119.4,84.075,83.991,36.8156]
[1646658318865,0.8687,84.074,83.991,30.8656]
[1646658319064,119.4,84.073,83.991,30.8656]
[1646658319264,24.9954,84.076,83.991,30.8656]
[1646658319265,119.4,84.071,83.992,5.95]
[1646658319465,119.4,84.067,83.993,6.0]
[1646658319665,126.2695,84.066,83.994,5.95]
[1646658320068,126.2695,84.066,83.981,5.95]
[1646658320267,119.4,84.064,83.982,6.0]
[1646658320467,119.4,84.062,83.982,6.0]
[1646658320667,0.8701,84.061,83.983,0.25]
[1646658321067,0.8701,84.061,83.981,6.0]
[1646658321068,0.8701,84.061,83.982,0.25]
[1646658321270,44.6119618,84.049,83.982,0.25]
[1646658321468,44.6119618,84.049,83.982,22.9282]
[1646658321469,24.3301,84.048,83.982,22.9282]
[1646658321667,24.3301,84.048,83.983,6.0]
[1646658321886,24.3301,84.048,83.984,0.25]
[1646658322583,23.7114,84.048,83.985,5.95]
[1646658322784,23.7114,84.048,83.986,6.25]
[1646658322983,23.7114,84.048,83.987,5.95]
[1646658323183,17.8635,84.04,83.988,6.25]
[1646658323482,0.25,84.039,83.989,5.95]
[1646658323684,44.6119618,84.049,83.991,119.4]
[1646658323885,44.6119618,84.049,83.992,6.25]
[1646658324083,24.6588,84.071,83.992,6.25]
[1646658324285,24.6588,84.071,83.993,23.4108]
[1646658324483,24.6588,84.071,83.994,12.2]
[1646658324684,24.6588,84.071,84.0,17.8562]
[1646658324886,24.6588,84.071,84.001,12.199]
[1646658325086,43.57424644,84.07,84.001,5.949]
[1646658325385,43.57424644,84.07,84.003,119.4]
[1646658325585,43.57424644,84.07,84.004,12.199]
[1646658325886,43.57424644,84.07,84.004,35.6098]
[1646658326086,43.57424644,84.07,84.02,17.8544]
[1646658326287,43.57424644,84.07,84.021,6.25]
[1646658326686,43.57424644,84.07,84.021,0.25]
[1646658327088,43.57424644,84.07,84.03,17.8529]
[1646658327288,43.57424644,84.07,84.031,6.25]
[1646658327890,0.617,84.075,84.031,6.25]
[1646658328090,1.60541886,84.091,84.031,6.25]
[1646658328291,0.25,84.075,84.032,6.0]
[1646658328491,0.25,84.075,84.033,0.25]
[1646658328692,0.25,84.075,84.04,17.8515]
[1646658328891,0.25,84.075,84.041,6.25]
[1646658329590,0.25,84.075,84.041,0.25]
[1646658329790,24.921,84.075,84.041,0.25]
[1646658329991,24.921,84.075,84.031,6.25]
[1646658331391,0.6299,84.074,84.031,6.25]
[1646658331992,0.6299,84.074,84.021,6.0]
[1646658332595,17.8565,84.07,84.021,6.0]
[1646658332797,0.25,84.069,83.999,6.0]
[1646658332993,0.25,84.069,84.01,17.8578]
[1646658333194,0.25,84.069,84.011,6.0]
[1646658333797,0.25,84.069,84.012,0.25]
[1646658333997,0.6324,84.068,84.012,0.25]
[1646658334795,17.8587,84.06,84.011,6.0]
[1646658334997,42.03867442,84.058,83.999,6.0]
[1646658335295,125.65,84.057,83.989,6.0]
[1646658336096,125.65,84.057,83.99,0.25]
[1646658336498,17.8656,84.05,83.99,18.1122]
[1646658336697,22.9568,84.049,83.991,6.0]
[1646658336901,22.9568,84.049,83.992,0.25]
[1646658337099,22.7068,84.049,83.992,0.25]
[1646658337297,0.25,84.048,83.992,0.25]
[1646658337498,0.25,84.048,84.0,17.8597]
[1646658337697,0.25,84.048,84.001,6.25]
[1646658338100,22.7068,84.049,84.001,6.25]
[1646658338300,1.60541886,84.068,84.002,28.31653583]
[1646658338600,1.60541886,84.072,84.01,17.8583]
[1646658338799,22.7068,84.075,84.011,125.65]
[1646658339001,22.7068,84.075,84.011,35.99653583]
[1646658339202,22.7068,84.075,84.012,22.31653583]
[1646658339403,46.3543787,84.074,84.013,6.25]
[1646658340103,46.3543787,84.074,84.02,17.8504]
[1646658340304,46.3543787,84.074,84.021,6.25]
[1646658340804,46.3543787,84.074,84.021,0.25]
[1646658341206,46.3543787,84.074,84.006,0.25]
[1646658341807,0.599,84.083,84.006,0.25]
[1646658341808,0.599,84.083,84.031,119.4]
[1646658342008,0.599,84.083,84.033,119.52279341]
[1646658342211,1.60541886,84.107,84.036,0.19017075]
[1646658342404,48.1806,84.146,84.039,119.4]
[1646658342405,1.60541886,84.109,84.039,119.4]
[1646658342604,1.60541886,84.109,84.042,59.6326202]
[1646658342805,41.27387257,84.11,84.044,0.2026202]
[1646658343005,41.27387257,84.11,84.045,59.43]
[1646658343204,41.27387257,84.11,84.047,59.6326202]
[1646658343404,41.27387257,84.11,84.049,0.2026202]
[1646658344004,41.27387257,84.11,84.06,17.841]
[1646658344205,41.27387257,84.11,84.061,6.25]
[1646658344807,41.27387257,84.11,84.062,6.0]
[1646658345006,41.27387257,84.11,84.063,0.25]
[1646658345304,41.27387257,84.11,84.061,0.25]
[1646658345504,41.27387257,84.11,84.07,17.8438]
[1646658345705,41.27387257,84.11,84.071,6.25]
[1646658346204,41.27387257,84.11,84.071,0.25]
[1646658346807,41.27387257,84.11,84.07,17.8438]
[1646658347010,41.27387257,84.11,84.071,6.25]
[1646658347212,41.27387257,84.11,84.072,6.25]
[1646658347410,41.27387257,84.11,84.062,0.25]
[1646658348116,41.27387257,84.11,84.08,17.8426]
[1646658348412,41.27387257,84.11,84.081,6.25]
[1646658349714,1.60541886,84.135,84.081,6.25]
[1646658349913,0.25,84.134,84.081,6.25]
[1646658350313,1.60541886,84.136,84.081,6.25]
[1646658350513,1.60541886,84.136,84.09,17.84]
[1646658350715,1.60541886,84.162,84.092,0.2026202]
[1646658350912,1.60541886,84.164,84.092,0.2026202]
[1646658351116,1.60541886,84.168,84.092,0.2026202]
[1646658351312,1.60541886,84.168,84.092,6.0]
[1646658351513,1.60541886,84.168,84.1,17.8312]
[1646658351712,1.60541886,84.162,84.101,6.25]
[1646658351913,0.25,84.161,84.102,5.943]
[1646658352113,0.25,84.161,84.103,6.25]
[1646658352315,0.25,84.161,84.104,6.25]
[1646658352514,0.25,84.161,84.101,6.25]
[1646658352913,0.25,84.161,84.101,0.25]
[1646658353115,119.4,84.164,84.101,0.25]
[1646658353313,1.60541886,84.161,84.101,0.25]
[1646658353514,0.8586,84.16,84.095,0.25]
[1646658353714,2.46401886,84.16,84.095,0.25]
[1646658353913,2.46401886,84.16,84.072,6.0]
[1646658353914,1.60541886,84.159,84.073,6.192]
[1646658354115,0.8586,84.16,84.073,6.192]
[1646658354116,48.39117447,84.149,84.09,17.8407]
[1646658354314,119.65,84.148,84.091,6.25]
[1646658354514,119.65,84.148,84.091,6.0]
[1646658354918,0.6051,84.147,84.091,6.0]
[1646658356315,0.6051,84.147,84.092,0.25]
[1646658357422,0.25,84.148,84.1,17.8385]
[1646658357620,0.25,84.148,84.101,6.25]
[1646658357819,0.25,84.148,84.102,5.942]
[1646658358019,0.25,84.148,84.103,6.25]
[1646658358221,48.39117447,84.149,84.104,5.942]
[1646658358423,48.39117447,84.149,84.105,6.25]
[1646658358625,48.39117447,84.149,84.106,5.942]
[1646658358826,48.39117447,84.149,84.11,17.8346]
[1646658359026,48.39117447,84.149,84.111,12.192]
[1646658361226,6.0,84.167,84.111,12.192]
[1646658361428,0.25,84.162,84.111,12.192]
[1646658362429,39.91017581,84.164,84.111,12.192]
[1646658362628,1.60541886,84.178,84.12,17.8345]
[1646658362829,1.60541886,84.183,84.121,12.192]
[1646658363028,22.937,84.185,84.121,12.192]
[1646658363029,1.60541886,84.184,84.121,12.192]
[1646658363248,22.937,84.185,84.121,12.192]
[1646658363648,41.35030173,84.184,84.121,12.192]
[1646658364048,41.35030173,84.184,84.13,17.8298]
[1646658364249,41.35030173,84.184,84.131,12.191]
[1646658364449,0.25,84.183,84.131,12.191]
[1646658364748,0.25,84.183,84.131,11.941]
[1646658364952,0.25,84.183,84.131,6.0]
[1646658365249,1.85541886,84.183,84.105,6.0]
[1646658365451,1.60541886,84.182,84.105,6.0]
[1646658365748,0.25,84.181,84.106,5.942]
[1646658365950,26.00851886,84.181,84.105,5.942]
[1646658366151,24.4031,84.181,84.12,17.8333]
[1646658366349,24.1531,84.181,84.121,6.191]
[1646658367149,24.1531,84.181,84.122,6.0]
[1646658367350,1.60541886,84.178,84.123,0.25]
[1646658367551,0.25,84.177,84.123,0.25]
[1646658367749,1.85541886,84.177,84.123,0.25]
[1646658368052,1.60541886,84.176,84.123,0.25]
[1646658368250,0.25,84.175,84.13,17.8324]
[1646658368453,0.25,84.175,84.131,6.25]
[1646658368852,1.60541886,84.177,84.131,6.25]
[1646658369054,24.1531,84.181,84.132,5.941]
[1646658369253,24.1531,84.181,84.133,6.25]
[1646658369452,24.1531,84.181,84.134,5.941]
[1646658369654,24.1531,84.181,84.135,6.25]
[1646658369859,24.1531,84.181,84.136,5.941]
[1646658370055,24.1531,84.181,84.14,17.8302]
[1646658370254,24.1531,84.181,84.141,12.191]
[1646658370255,1.60541886,84.179,84.141,12.191]
[1646658370654,0.6663,84.184,84.141,131.591]
[1646658370855,0.6663,84.184,84.141,139.101]
[1646658371054,0.6663,84.184,84.15,17.8277]
[1646658371255,1.60541886,84.219,84.151,12.19]
[1646658371456,42.0365458,84.226,84.151,12.19]
[1646658372057,42.0365458,84.226,84.16,17.8189]
[1646658372259,1.60541886,84.23,84.161,125.65]
[1646658372457,1.60541886,84.231,84.162,5.938]
[1646658372660,1.60541886,84.231,84.163,6.25]
[1646658372858,1.60541886,84.231,84.164,5.938]
[1646658373060,1.60541886,84.232,84.18,17.8184]
[1646658373257,40.9885374,84.231,84.181,12.187]
[1646658373862,1.60541886,84.229,84.181,6.25]
[1646658374064,1.60541886,84.23,84.181,0.25]
[1646658374259,1.60541886,84.226,84.145,0.25]
[1646658374460,0.25,84.225,84.146,5.939]
[1646658374664,24.54641886,84.229,84.17,17.8236]
[1646658374860,1.60541886,84.228,84.171,12.188]
[1646658375061,1.85541886,84.227,84.171,12.188]
[1646658375262,1.85541886,84.226,84.171,12.188]
[1646658375461,1.60541886,84.226,84.171,12.188]
[1646658375660,1.85541886,84.225,84.18,17.8221]
[1646658375862,1.60541886,84.222,84.181,6.25]
[1646658376061,0.25,84.221,84.181,6.0]
[1646658376363,41.32951962,84.218,84.172,6.0]
[1646658376561,119.65,84.217,84.15,17.8271]
[1646658376760,1.60541886,84.215,84.151,6.0]
[1646658376961,0.25,84.214,84.151,6.0]
[1646658377261,1.60541886,84.212,84.151,6.0]
[1646658377462,1.85541886,84.211,84.144,6.0]
[1646658377661,1.60541886,84.211,84.145,0.25]
[1646658377863,1.85541886,84.21,84.145,0.25]
[1646658378064,1.60541886,84.21,84.16,17.8251]
[1646658378263,1.85541886,84.214,84.161,6.25]
[1646658378462,0.25,84.214,84.161,6.25]
[1646658379064,1.60541886,84.212,84.161,0.25]
[1646658379262,1.60541886,84.21,84.145,0.25]
[1646658379464,0.25,84.209,84.145,0.25]
[1646658379662,1.85541886,84.209,84.145,0.25]
[1646658380063,1.85541886,84.209,84.12,59.4256]
[1646658380264,119.4,84.199,84.1,17.8374]
[1646658380468,119.4,84.195,84.054,119.4]
[1646658380664,1.60541886,84.185,84.067,23.01057816]
[1646658380864,119.4,84.181,84.067,23.01057816]
[1646658381064,53.6518,84.18,84.069,119.4]
[1646658381466,53.6518,84.18,84.071,119.4]
[1646658381667,53.6518,84.18,84.072,6.25]
[1646658381865,55.25721886,84.18,84.072,52.36121774]
[1646658382066,121.00541886,84.179,84.073,23.01057816]
[1646658382265,17.8394,84.17,84.1,17.8374]
[1646658382466,119.65,84.169,84.101,6.0]
[1646658382765,0.25,84.168,84.101,6.0]
[1646658383765,0.25,84.168,84.102,0.25]
[1646658383966,1.85541886,84.169,84.102,0.25]
[1646658384167,0.10801444,84.158,84.074,6.0]
[1646658384371,0.6185,84.157,84.069,6.0]
[1646658384571,42.76217174,84.155,84.069,6.0]
[1646658384772,0.8682,84.154,84.069,6.0]
[1646658384972,1.60541886,84.153,84.069,6.0]
[1646658385170,0.8679,84.152,84.069,6.0]
[1646658385371,8.47331886,84.152,84.069,6.0]
[1646658385573,1.60541886,84.151,84.07,0.25]
[1646658385771,6.8676,84.15,84.07,0.25]
[1646658386276,17.8461,84.14,84.07,17.8441]
[1646658386474,0.25,84.139,84.071,6.0]
[1646658386774,0.25,84.139,84.069,6.0]
[1646658387574,0.25,84.139,84.08,17.8423]
[1646658387775,0.25,84.139,84.081,6.0]
[1646658388179,0.25,84.139,84.047,23.01057816]
[1646658388180,34.99376192,84.129,84.047,23.01057816]
[1646658388376,34.99376192,84.129,84.04,77.6302]
[1646658388377,0.25,84.128,84.082,0.25]
[1646658388577,0.25,84.128,84.07,0.25]
[1646658388777,0.25,84.128,84.061,6.25]
[1646658389376,0.25,84.128,84.061,0.25]
[1646658389578,0.25,84.128,84.055,0.25]
[1646658390180,0.25,84.128,84.07,17.8446]
[1646658390380,0.25,84.128,84.071,6.25]
[1646658392682,34.99376192,84.129,84.071,6.25]
[1646658393085,34.99376192,84.129,84.08,17.8416]
[1646658393285,34.99376192,84.129,84.081,6.25]
[1646658393983,34.99376192,84.129,84.081,0.25]
[1646658394182,0.25,84.128,84.081,0.25]
[1646658394386,0.25,84.128,84.07,17.8424]
[1646658394684,0.25,84.128,84.071,6.25]
[1646658395683,119.65,84.128,84.071,0.25]
[1646658395886,119.65,84.128,84.062,0.25]
[1646658396083,144.3461,84.127,84.056,0.25]
[1646658396284,0.25,84.126,84.056,0.25]
[1646658396483,17.846,84.12,84.055,6.0]
[1646658396684,0.25,84.119,84.051,6.0]
[1646658397885,0.25,84.124,84.052,0.25]
[1646658398087,17.848,84.11,84.052,0.25]
[1646658398387,0.25,84.109,84.052,0.25]
[1646658399386,119.65,84.109,84.051,6.0]
[1646658399585,119.4,84.098,84.041,6.0]
[1646658399786,0.8685,84.097,84.026,6.0]
[1646658399986,143.3479,84.097,84.026,6.0]
[1646658400189,142.7294,84.097,84.026,6.0]
[1646658400991,142.7294,84.097,84.027,0.25]
[1646658401191,119.4,84.089,84.017,17.4684]
[1646658401390,119.4,84.087,84.011,23.2919]
[1646658401589,6.0,84.086,84.012,6.0]
[1646658401789,0.25,84.085,84.012,6.0]
[1646658401989,23.3294,84.085,84.012,6.0]
[1646658402291,45.81340106,84.069,84.01,17.8564]
[1646658402490,0.25,84.068,84.011,6.0]
[1646658402691,0.25,84.068,84.012,0.25]
[1646658402893,119.65,84.068,84.011,6.0]
[1646658403093,119.65,84.068,83.993,22.9029]
[1646658403094,119.65,84.068,83.995,6.0]
[1646658403293,142.9724,84.067,83.994,6.0]
[1646658403496,0.25,84.066,83.994,6.0]
[1646658403692,0.25,84.066,83.982,23.01381949]
[1646658403693,17.8587,84.06,83.99,17.8601]
[1646658403894,0.25,84.059,83.991,6.0]
[1646658404092,0.25,84.059,83.983,6.0]
[1646658404296,0.25,84.059,83.984,23.26381949]
[1646658404516,0.25,84.059,83.985,6.0]
[1646658404715,0.25,84.059,84.0,17.8582]
[1646658404918,0.25,84.059,84.001,6.25]
[1646658405517,0.25,84.059,84.001,29.26381949]
[1646658405718,0.25,84.065,84.001,29.26381949]
[1646658406419,0.25,84.065,84.001,6.25]
[1646658406719,0.25,84.065,84.002,6.0]
[1646658406918,0.25,84.065,84.003,0.25]
[1646658407119,0.25,84.065,84.01,17.8573]
[1646658407321,0.25,84.065,84.011,6.25]
[1646658407519,0.25,84.065,84.012,5.949]
[1646658407520,17.8588,84.06,84.012,5.949]
[1646658407720,0.25,84.059,84.013,0.25]
[1646658408021,23.6293,84.066,84.013,0.25]
[1646658408221,1.60541886,84.112,84.02,17.855]
[1646658408421,46.8413,84.113,84.021,6.25]
[1646658408621,17.8506,84.1,84.022,5.949]
[1646658408824,0.6636,84.099,84.023,6.25]
[1646658409022,0.6636,84.099,84.024,5.948]
[1646658409023,23.572,84.099,84.024,5.948]
[1646658409221,23.572,84.099,84.025,6.25]
[1646658409421,23.572,84.099,84.026,5.947]
[1646658409621,119.4,84.089,84.03,17.851]
[1646658409822,119.4,84.089,84.031,6.25]
[1646658410022,119.4,84.087,84.031,6.25]
[1646658410222,119.4,84.087,84.031,0.25]
[1646658410723,17.8569,84.08,84.015,6.25]
[1646658410922,0.25,84.079,84.016,5.949]
[1646658411121,119.4,84.085,84.011,5.949]
[1646658411323,119.4,84.083,83.999,5.948]
[1646658411525,119.4,84.081,84.0,6.0]
[1646658411721,0.25,84.08,84.001,5.949]
[1646658411921,0.25,84.08,84.002,6.0]
[1646658412122,119.4,84.069,84.003,5.949]
[1646658412322,119.4,84.067,84.004,6.25]
[1646658412522,0.25,84.066,84.005,5.949]
[1646658412723,0.25,84.066,84.006,6.25]
[1646658412923,0.25,84.066,84.007,5.949]
[1646658413123,0.25,84.066,84.01,17.8572]
[1646658413323,17.8587,84.06,84.011,6.25]
[1646658413523,0.25,84.059,84.011,6.25]